[Event "European Women Rapid-ch 2023"]
[Site "Monaco"]
[Date "2024.01.14"]
[Round "11.24"]
[White "Hryshchenko, Kamila"]
[Black "Haussernot, Cecile"]
[Result "0-1"]
[ECO "A04"]
[WhiteElo "2192"]
[BlackElo "2136"]
[Annotator "TA"]
[PlyCount "140"]
[EventDate "2023.12.19"]
[EventType "swiss"]
[EventCountry "MNC"]
[SourceTitle "playchess.com"]
[Source "ChessBase"]
[SourceQuality "1"]
[TimeControl "900+10"]

{[%evp 30,140,0,-27,-26,-31,-18,-4,66,-12,82,0,0,0,0,0,0,0,0,-36,-40,-172,-142,-147,-138,-148,-137,-136,-98,-100,-99,-101,-63,-60,-41,-44,-30,-131,-101,-154,-143,-141,-107,-195,-178,-193,-201,-181,-185,-191,-189,-167,-176,-179,-179,-185,-185,-178,-120,-127,0,-173,-173,-188,-202,-277,-279,-261,-154,-141,-151,-113,-113,-113,-113,-368,-367,-4153,-4153,-4153,-4153,-4153,-4153,-4153,-1889,-4153,-4153,-4153,-4153,-4153,-4153,-29977,-29977,-29978,-29975,-12791,-11865,-29985,-29986,-29987,-29988,-29988,-29989,-29989,-29990,-29990,-29991,-29991,-29992,-29992,-29993,-29993,-29993]} 1. e4 {[%emt 0:00:02]} c5 {[%emt 0:00:01]} 2. Nf3 {[%emt 0:00:03]} d6 {[%emt 0:00:01]} 3. d3 {[%emt 0:00:03]} Nc6 {[%emt 0:00:05]} 4. g3 {[%emt 0:00:02]} g6 {[%emt 0:00:02]} 5. Bg2 {[%emt 0:00:02]} Bg7 {[%emt 0:00:02]} 6. O-O {[%emt 0:00:01]} e6 {[%emt 0:00:08]} 7. c3 {[%emt 0:00:42]} e5 {[%emt 0:01:39]} 8. Ng5 {[%emt 0:01:00]} h6 {[%emt 0:00:20]} 9. Nh3 {[%emt 0:00:03]} Be6 {[%emt 0:00:15]} 10. f4 {[%emt 0:00:09]} Qd7 {[%emt 0:00:18]} 11. Nf2 {[%emt 0:00:32]} Nge7 {[%emt 0:00:15]} 12. Nd2 {[%emt 0:00:37]} f5 {[%emt 0:01:07]} 13. Nf3 {[%emt 0:00:34]} O-O {[%emt 0:01:26]} 14. Be3 {[%emt 0:00:26]} c4 {[%emt 0:00:34]} 15. Qd2 {[%emt 0:03:51]} exf4 {[%emt 0:02:17]} 16. gxf4 {[%emt 0:00:47]} cxd3 {[%emt 0:00:07]} 17. Qxd3 {[%emt 0:00:26]} fxe4 {[%emt 0:00:20]} 18. Nxe4 {[%emt 0:00:03]} Nd5 {[%emt 0:00:29]} ({Black should try} 18... Rad8 $11) 19. Rad1 {[%emt 0:02:01]} (19. Nh4 $1 $14) 19... Rae8 {[%emt 0:01:11]} (19... Nxf4 $11 20. Bxf4 Rxf4) 20. Bc1 {[%emt 0:03:37]} (20. Nh4 $1 $16 {[%cal Rh4g6]} Nce7 21. Bc1) 20... Nxf4 $11 {[%emt 0:05:14]} 21. Bxf4 {[%emt 0:00:03]} Rxf4 {[%emt 0:00:02]} 22. Nxd6 {[%emt 0:00:02]} Ref8 {[%emt 0:00:01]} 23. Qxg6 {[%emt 0:00:33]} Bg4 {[%emt 0:00:50]} 24. Ne4 {[%emt 0:01:44]} Qc7 {[%emt 0:00:07]} 25. Nfd2 {[%emt 0:00:33]} (25. Ned2 $1 $15) 25... Ne5 {[%emt 0:01:10]} 26. Qd6 {[%emt 0:00:45]} Qxd6 {[%emt 0:00:08]} 27. Nxd6 {[%emt 0:00:00]} Bxd1 {[%emt 0:00:04]} 28. Rxd1 {[%emt 0:00:09]} Nd3 {[%emt 0:00:24]} 29. N2c4 {[%emt 0:00:16]} Nf2 {[%emt 0:00:05]} 30. Re1 {[%emt 0:00:14]} b5 {[%emt 0:00:13]} 31. Nxb5 {[%emt 0:00:04]} R8f5 {[%emt 0:00:25]} (31... Rxc4 $2 32. Bd5+ (32. Nxa7 $2 Rg4 $19) 32... Kh8 33. Bxc4 $18) 32. Nbd6 {[%emt 0:00:48]} Rg5 {[%emt 0:00:03]} 33. Ne3 {[%emt 0:00:14]} (33. Re3 $11 {remains equal.}) 33... Bf8 {[%emt 0:00:09]} 34. Ndf5 {[%emt 0:00:07]} (34. Ndc4 $142) 34... Rgxf5 $17 {[%emt 0:00:44]} 35. Nxf5 {[%emt 0:00:02]} Rxf5 {[%emt 0:00:00]} 36. Bd5+ {[%emt 0:00:12]} (36. b4 $17 {is a better defense.}) 36... Kg7 {[%emt 0:00:10]} 37. Be6 {[%emt 0:00:09]} Rf6 {[%emt 0:00:02]} 38. b4 {[%emt 0:00:08]} Nd3 {[%emt 0:00:04]} 39. Re3 {[%emt 0:00:05]} Nf4 {[%emt 0:00:11]} 40. Bb3 {[%emt 0:00:02]} Bd6 {[%emt 0:00:20]} 41. a3 {[%emt 0:00:20]} h5 {[%emt 0:00:05]} 42. c4 {[%emt 0:00:05]} Rg6+ {[%emt 0:00:27]} 43. Kf1 {[%emt 0:00:01]} Ng2 {[%emt 0:00:05]} (43... Kf6 $19 {...Rg2 is the strong threat.} 44. c5 Be5) 44. Re2 {[%emt 0:00:12]} Nf4 {[%emt 0:00:05]} (44... Nh4 $1 $17 45. c5 Rf6+ 46. Ke1 Nf3+ 47. Kd1 Nd4 (47... Bxh2 48. Bd5 $14) 48. Rg2+ Kh6) 45. Re3 $1 $19 {[%emt 0:00:06]} Kf6 {[%emt 0:00:11]} 46. c5 {[%emt 0:00:04]} Be5 {[%emt 0:00:01]} 47. Rg3 {[%emt 0:00:23]} Rxg3 {[%emt 0:00:31]} 48. hxg3 {[%emt 0:00:01]} Nd3 {[%emt 0:00:01]} ({Black should play} 48... Ne6 $19 49. Bd1 Kg5 (49... Bxg3 $2 50. Bxh5 Ke5 51. Bf7 $19)) 49. Bc4 $17 {[%emt 0:00:21]} Nb2 {[%emt 0:00:03]} 50. Be2 {[%emt 0:00:03]} Bxg3 {[%emt 0:00:26]} 51. Bxh5 {[%emt 0:00:01]} Ke5 $1 {[%emt 0:00:04]} 52. Kg2 $2 {[%emt 0:00:37][%mdl 8192] [#]} (52. Ke2 $17) 52... Bh4 $1 $19 {[%emt 0:00:21]} 53. b5 $2 {[%emt 0:00:19] [#]} (53. Be2 Bg5 54. Kf1) 53... Bd8 $1 $19 {[%emt 0:00:22]} 54. b6 {[%emt 0:00:06]} a5 {[%emt 0:00:10]} (54... axb6 55. cxb6 Ke4 (55... Bxb6 56. Kf3 $15) 56. Kf2 $11) 55. b7 {[%emt 0:00:04]} Bc7 {[%emt 0:00:01]} 56. Bf3 {[%emt 0:00:07]} Kd4 {[%emt 0:00:03]} (56... Nc4 $142 57. Kf2 Kd4 (57... Nxa3 58. Ke3 $17)) 57. c6 {[%emt 0:00:02]} Nc4 {[%emt 0:00:09]} 58. Kf2 {[%emt 0:00:16]} Nxa3 {[%emt 0:00:05]} 59. Ke2 {[%emt 0:00:03]} Kc3 {[%emt 0:00:03]} 60. Bd5 {[%emt 0:00:10]} Nc2 {[%emt 0:00:08]} 61. Kf3 {[%emt 0:00:20]} Nd4+ {[%emt 0:00:17]} 62. Ke4 {[%emt 0:00:03]} a4 {[%emt 0:00:34]} 63. Ke3 {[%emt 0:00:30]} Nb3 {[%emt 0:00:13]} 64. Ke4 {[%emt 0:00:08]} a3 {[%emt 0:00:01]} 65. Kf5 {[%emt 0:00:01]} a2 {[%emt 0:00:02]} 66. Ke6 {[%emt 0:00:03]} a1=Q {[%emt 0:00:03]} ({And not} 66... a1=B 67. Kd7 Kb4 68. Kxc7 Be5+ 69. Kc8 $11) 67. Kd7 {[%emt 0:00:01]} Qa5 {[%emt 0:00:06]} 68. Bxb3 {[%emt 0:00:03]} Kxb3 {[%emt 0:00:01]} 69. Kc8 {[%emt 0:00:01]} Qb6 {[%emt 0:00:03]} 70. Kd7 {[%emt 0:00:03]} Kc4 {[%emt 0:00:01]} 0-1

[Event "European Women Rapid-ch 2023"]
[Site "Monaco"]
[Date "2024.01.14"]
[Round "11.25"]
[White "Khurtsilava, Inga"]
[Black "Hnatyshyn, Anastasiia"]
[Result "1/2-1/2"]
[ECO "D05"]
[WhiteElo "2186"]
[BlackElo "2152"]
[Annotator "TA"]
[PlyCount "122"]
[EventDate "2023.12.19"]
[EventType "swiss"]
[EventCountry "MNC"]
[SourceTitle "playchess.com"]
[Source "ChessBase"]
[SourceQuality "1"]
[TimeControl "900+10"]

{[%evp 26,122,42,41,53,65,68,61,74,54,67,37,69,60,70,43,42,43,52,41,68,32,29,0,0,0,0,0,0,0,0,-6,-13,-17,-20,-28,-34,-34,-34,-55,-17,-27,-4,-35,-37,-48,-25,-25,-25,-25,-25,-34,-34,-85,0,-21,0,-45,-35,-39,0,0,0,-41,0,0,0,-29,-18,-50,-8,-8,0,-66,0,-11,0,-58,0,-36,0,-22,-17,-29,-25,-29,0,-27,0,0,0,0,0,0,0,0,0,0,0]} 1. d4 {[%emt 0:00:01]} d5 {[%emt 0:00:01]} 2. Nf3 {[%emt 0:00:01]} Nf6 {[%emt 0:00:03]} 3. e3 {[%emt 0:00:01]} e6 {[%emt 0:00:10]} 4. Bd3 {[%emt 0:00:01]} c5 {[%emt 0:00:03]} 5. b3 {[%emt 0:00:01]} Nc6 {[%emt 0:00:08]} 6. a3 {[%emt 0:00:01]} Be7 {[%emt 0:00:36]} 7. O-O {[%emt 0:00:03]} O-O {[%emt 0:00:03]} 8. Bb2 {[%emt 0:00:01]} b6 {[%emt 0:00:09]} 9. Nbd2 {[%emt 0:00:03]} Bb7 {[%emt 0:00:03]} 10. Ne5 {[%emt 0:00:05]} Nxe5 {[%emt 0:01:17]} 11. dxe5 {[%emt 0:00:02] D05: Damenbauernspiele (Colle-Aufbau).} Nd7 {[%emt 0:00:15]} 12. f4 {[%emt 0:00:12]} g6 {[%emt 0:00:38]} 13. Qg4 {[%emt 0:01:54]} Kh8 $146 {[%emt 0:03:36]} ({Predecessor:} 13... c4 14. bxc4 dxc4 15. Nxc4 Nc5 16. Bd4 Qd5 17. Qe2 Rac8 18. Bxc5 Qxc5 19. Nd2 Qc3 {0-1 Cherednichenko,E (2028)-Stiri,A (2258) EU-ch (Women) 8th 2007 (9)}) 14. Rad1 {[%emt 0:01:12]} f5 {[%emt 0:03:09]} 15. exf6 {[%emt 0:00:30]} Bxf6 {[%emt 0:00:03]} 16. Bxf6+ {[%emt 0:00:13]} Qxf6 {[%emt 0:00:36]} 17. Nf3 {[%emt 0:01:02]} Rae8 {[%emt 0:01:09]} 18. Bb5 {[%emt 0:00:22]} Qe7 {[%emt 0:00:40]} 19. Qg5 {[%emt 0:04:27]} a6 {[%emt 0:01:29]} 20. Qxe7 {[%emt 0:01:23]} Rxe7 {[%emt 0:00:03]} 21. Bxd7 {[%emt 0:00:01]} Rxd7 {[%emt 0:00:02]} 22. Ne5 {[%emt 0:00:01]} Rdd8 {[%emt 0:00:07]} 23. g4 {[%emt 0:00:12]} Kg7 {[%emt 0:00:13]} 24. h4 {[%emt 0:00:12]} d4 {[%emt 0:00:48]} 25. exd4 {[%emt 0:00:10]} Rxd4 {[%emt 0:00:36]} 26. Rxd4 {[%emt 0:00:03]} cxd4 {[%emt 0:00:02]} 27. Rf2 {[%emt 0:00:23]} Be4 {[%emt 0:00:18]} 28. Nc4 {[%emt 0:00:57]} b5 {[%emt 0:00:25]} 29. Ne5 $1 {[%emt 0:00:51]} Rc8 {[%emt 0:00:17]} 30. Rd2 {[%emt 0:00:02]} Rxc2 {[%emt 0:00:14]} 31. Rxd4 {[%emt 0:00:03]} Bd5 {[%emt 0:00:11]} 32. b4 {[%emt 0:00:37]} Rg2+ {[%emt 0:00:40]} 33. Kf1 {[%emt 0:00:06]} Rg3 {[%emt 0:00:02]} 34. Kf2 {[%emt 0:01:55]} ({Nur nicht} 34. Rd3 $2 Bc4 35. Nxc4 Rxd3 $19) 34... Rxa3 {[%emt 0:00:07]} 35. g5 {[%emt 0:00:48]} Rh3 {[%emt 0:00:49]} 36. Rd3 {[%emt 0:01:00]} Rxh4 {[%emt 0:00:38]} 37. Kg3 {[%emt 0:00:01]} Rh1 {[%emt 0:00:03]} 38. Rc3 $1 {[%emt 0:00:16]} Rg1+ {[%emt 0:00:29]} 39. Kh2 {[%emt 0:00:05]} (39. Kf2 $15 Rg2+ 40. Ke1) 39... Rh1+ {[%emt 0:00:10]} (39... Rb1 $17 40. Kg3 Rb3 (40... Rxb4 41. Rc7+ Kg8 42. Rc8+ Kg7 43. Rc7+ Kh8 44. Rc8+ Kg7 45. Rc7+ $11) 41. Rxb3 Bxb3) 40. Kg3 $11 {[%emt 0:00:03]} Rg1+ {[%emt 0:00:02]} 41. Kf2 {[%emt 0:00:17]} Rg2+ {[%emt 0:00:18]} 42. Ke1 {[%emt 0:00:55]} Rb2 {[%emt 0:00:45]} (42... Bc4 $5) 43. Rc7+ {[%emt 0:00:02]} Kg8 {[%emt 0:00:06]} 44. Nd3 {[%emt 0:00:36]} Rb3 {[%emt 0:00:42]} 45. Kd2 {[%emt 0:00:21]} Bc4 {[%emt 0:00:05]} 46. Nc5 {[%emt 0:00:19]} Rf3 {[%emt 0:00:18]} 47. Rc8+ {[%emt 0:00:44]} Kg7 {[%emt 0:00:03]} 48. Rc7+ {[%emt 0:00:01]} Kg8 {[%emt 0:00:02]} (48... Kf8 $11 49. Rxh7 Rxf4 50. Nd7+ Ke8 51. Nf6+ Kd8) 49. Rc8+ $15 {[%emt 0:00:27]} Kg7 {[%emt 0:00:01]} (49... Kf7 $15 50. Rc7+ Ke8) 50. Rc7+ $11 {[%emt 0:00:11]} Kg8 {[%emt 0:00:02]} (50... Kf8 $11 51. Rxh7 Rxf4 52. Nd7+ Ke8) 51. Rc8+ $15 {[%emt 0:00:08]} Kg7 {[%emt 0:00:02]} 52. Rc7+ {[%emt 0:00:07]} Kg8 {[%emt 0:00:03]} 53. Nd7 {[%emt 0:00:14]} Rxf4 {[%emt 0:00:40]} 54. Nf6+ {[%emt 0:00:03]} Kf8 {[%emt 0:00:01]} 55. Ke3 {[%emt 0:00:03]} Rh4 {[%emt 0:00:29]} 56. Nxh7+ {[%emt 0:00:08]} Kg8 {[%emt 0:00:11]} 57. Nf6+ {[%emt 0:00:08]} Kf8 {[%emt 0:00:03]} 58. Ra7 {[%emt 0:00:10]} Bd5 {[%emt 0:00:18]} 59. Rd7 {[%emt 0:00:27]} Rxb4 {[%emt 0:00:14]} 60. Nh7+ {[%emt 0:00:04]} Kg8 {[%emt 0:00:05]} (60... Ke8 $5 61. Nf6+ $8 Kf8 $11) 61. Nf6+ {[%emt 0:00:02]} Kf8 {[%emt 0:00:06]} 1/2-1/2

[Event "European Women Rapid-ch 2023"]
[Site "Monaco"]
[Date "2024.01.14"]
[Round "11.26"]
[White "Rodriguez Redondo, Adhara"]
[Black "Reizniece-Ozola, Dana"]
[Result "0-1"]
[ECO "B08"]
[WhiteElo "2130"]
[BlackElo "2278"]
[Annotator "ChessBase"]
[PlyCount "94"]
[EventDate "2023.12.19"]
[EventType "swiss"]
[EventCountry "MNC"]
[SourceTitle "playchess.com"]
[Source "ChessBase"]
[SourceQuality "1"]
[TimeControl "900+10"]

1. e4 {[%emt 0:00:01]} d6 {[%emt 0:00:01]} 2. d4 {[%emt 0:00:01]} g6 {[%emt 0:00:02]} 3. Nf3 {[%emt 0:00:03]} Bg7 {[%emt 0:00:01]} 4. Nc3 {[%emt 0:00:05]} Nf6 {[%emt 0:00:07]} 5. h3 {[%emt 0:00:10]} c6 {[%emt 0:00:02]} 6. Be2 {[%emt 0:00:19]} O-O {[%emt 0:00:04]} 7. a4 {[%emt 0:00:02]} Qa5 {[%emt 0:00:16]} 8. Bd2 {[%emt 0:00:37]} e5 {[%emt 0:00:10]} 9. O-O {[%emt 0:03:34]} exd4 {[%emt 0:00:17]} 10. Nxd4 {[%emt 0:00:09]} Re8 {[%emt 0:01:00]} 11. Nb3 {[%emt 0:02:57]} Qd8 {[%emt 0:01:02]} 12. Bd3 {[%emt 0:01:03]} Nbd7 {[%emt 0:00:42]} 13. Re1 {[%emt 0:00:02]} Ne5 {[%emt 0:00:44]} 14. Bf1 {[%emt 0:00:02]} Be6 {[%emt 0:02:19]} 15. Nd4 {[%emt 0:02:01]} Bc4 {[%emt 0:00:27]} 16. Nf3 {[%emt 0:01:56]} Bxf1 {[%emt 0:00:28]} 17. Kxf1 {[%emt 0:00:07]} Nc4 {[%emt 0:01:35]} 18. Bc1 {[%emt 0:00:50]} d5 {[%emt 0:00:44]} 19. exd5 {[%emt 0:00:35]} Rxe1+ {[%emt 0:00:13]} 20. Nxe1 {[%emt 0:00:14]} Nxd5 {[%emt 0:00:26]} 21. Nxd5 {[%emt 0:00:02]} cxd5 {[%emt 0:00:04]} 22. Nd3 {[%emt 0:00:33]} Rc8 {[%emt 0:01:35]} 23. Kg1 {[%emt 0:00:34]} Qd7 {[%emt 0:01:02]} 24. Ra2 {[%emt 0:02:41]} Nd6 {[%emt 0:01:43]} 25. Ra1 {[%emt 0:00:27]} Ne4 {[%emt 0:00:24]} 26. Bf4 {[%emt 0:00:08]} Qf5 {[%emt 0:00:51]} 27. c3 {[%emt 0:00:14]} d4 {[%emt 0:00:37]} 28. g4 {[%emt 0:00:11]} Qd5 {[%emt 0:00:36]} 29. Nb4 {[%emt 0:00:05]} Qc4 {[%emt 0:00:07]} 30. Qf3 {[%emt 0:00:15]} dxc3 {[%emt 0:00:09]} 31. bxc3 {[%emt 0:00:05]} Bxc3 {[%emt 0:00:19]} 32. Rc1 {[%emt 0:00:15]} Qxb4 {[%emt 0:00:05]} 33. Bh6 {[%emt 0:00:09]} Re8 {[%emt 0:00:14]} 34. Kg2 {[%emt 0:00:10]} Bd2 {[%emt 0:00:33]} 35. Rc7 {[%emt 0:00:08]} Nd6 {[%emt 0:00:25]} 36. Bxd2 {[%emt 0:00:12]} Qxd2 {[%emt 0:00:02]} 37. Rd7 {[%emt 0:00:07]} Re6 {[%emt 0:00:21]} 38. Rd8+ {[%emt 0:00:12]} Kg7 {[%emt 0:00:02]} 39. Qg3 {[%emt 0:00:10]} Qd4 {[%emt 0:00:10]} 40. Rd7 {[%emt 0:00:12]} Qd5+ {[%emt 0:00:15]} 41. Kh2 {[%emt 0:00:09]} Qc6 {[%emt 0:00:01]} 42. Rd8 {[%emt 0:00:07]} Ne4 {[%emt 0:00:23]} 43. Qf4 {[%emt 0:00:07]} Re8 {[%emt 0:00:27]} 44. Rd4 {[%emt 0:00:15]} Nf6 {[%emt 0:00:21]} 45. g5 {[%emt 0:00:07]} Nd5 {[%emt 0:00:20]} 46. Qf3 {[%emt 0:00:13]} Ne7 {[%emt 0:00:16]} 47. Re4 {[%emt 0:00:12]} Nf5 {[%emt 0:00:11]} 0-1

[Event "European Women Rapid-ch 2023"]
[Site "Monaco"]
[Date "2024.01.14"]
[Round "11.27"]
[White "Pavlidou, Ekaterini"]
[Black "Uta, Adeline-Ramona"]
[Result "1-0"]
[ECO "E73"]
[WhiteElo "2206"]
[BlackElo "2036"]
[Annotator "RC"]
[PlyCount "149"]
[EventDate "2023.12.19"]
[EventType "swiss"]
[EventCountry "MNC"]
[SourceTitle "playchess.com"]
[Source "ChessBase"]
[SourceQuality "1"]
[TimeControl "900+10"]

1. d4 {[%emt 0:00:03]} Nf6 {[%emt 0:00:04]} 2. c4 {[%emt 0:00:02]} g6 {[%emt 0:00:02]} 3. Nc3 {[%emt 0:00:02]} Bg7 {[%emt 0:00:01]} 4. e4 {[%emt 0:00:02]} d6 {[%emt 0:00:01]} 5. Be2 {[%emt 0:00:30]} Na6 {[%emt 0:00:33]} 6. Be3 {[%emt 0:00:17]} O-O {[%emt 0:00:16]} 7. h4 {[%emt 0:00:09]} h5 {[%emt 0:00:32]} 8. f3 {[%emt 0:00:17]} c6 {[%emt 0:01:20]} 9. Qd2 {[%emt 0:01:22]} d5 {[%emt 0:00:24]} 10. cxd5 {[%emt 0:00:17]} cxd5 {[%emt 0:00:07]} 11. e5 {[%emt 0:00:05]} Nh7 {[%emt 0:00:34]} 12. g4 {[%emt 0:00:38]} f6 {[%emt 0:03:21]} 13. gxh5 {[%emt 0:00:04]} gxh5 {[%emt 0:00:06]} 14. f4 {[%emt 0:01:01]} Bg4 {[%emt 0:00:58]} 15. Bxg4 {[%emt 0:01:10]} hxg4 {[%emt 0:00:01]} 16. Qg2 {[%emt 0:00:28]} Nb4 {[%emt 0:01:51]} 17. O-O-O {[%emt 0:01:19]} Qc8 {[%emt 0:00:23]} 18. a3 {[%emt 0:00:36]} Na2+ {[%emt 0:00:23]} 19. Kd2 {[%emt 0:00:02]} Nxc3 {[%emt 0:00:07]} 20. bxc3 {[%emt 0:00:01]} Rd8 {[%emt 0:00:21]} 21. Ne2 {[%emt 0:00:31]} f5 {[%emt 0:00:49]} 22. h5 {[%emt 0:01:01]} Bh6 {[%emt 0:00:31]} 23. Rb1 {[%emt 0:00:48]} b6 {[%emt 0:00:02]} 24. Rhc1 {[%emt 0:01:20]} Qc4 {[%emt 0:00:29]} 25. Rc2 {[%emt 0:00:35]} Rac8 {[%emt 0:00:16]} 26. Rb4 {[%emt 0:00:30]} Qa6 {[%emt 0:00:29]} 27. a4 {[%emt 0:00:13]} e6 {[%emt 0:00:08]} 28. Bf2 {[%emt 0:02:25]} Rc4 {[%emt 0:00:48]} 29. Rbb2 {[%emt 0:01:00]} Rdc8 {[%emt 0:01:38]} 30. a5 {[%emt 0:00:10]} Qxa5 {[%emt 0:00:13]} 31. Ra2 {[%emt 0:00:06]} Ra4 {[%emt 0:00:05]} 32. Rxa4 {[%emt 0:00:15]} Qxa4 {[%emt 0:00:01]} 33. Be3 {[%emt 0:00:26]} b5 {[%emt 0:00:19]} 34. Qh1 {[%emt 0:00:56]} b4 {[%emt 0:00:25]} 35. Qb1 {[%emt 0:00:09]} Bf8 {[%emt 0:01:58]} 36. Ra2 {[%emt 0:00:39]} bxc3+ {[%emt 0:00:20]} 37. Nxc3 {[%emt 0:01:08]} Qb4 {[%emt 0:00:12]} 38. Qa1 {[%emt 0:00:06]} Rc7 {[%emt 0:00:52]} 39. Rxa7 {[%emt 0:00:24]} Rxa7 {[%emt 0:00:01]} 40. Qxa7 {[%emt 0:00:02]} Qb2+ {[%emt 0:00:17]} 41. Kd3 {[%emt 0:00:02]} Bb4 {[%emt 0:00:17]} 42. Bd2 {[%emt 0:00:21]} Qb3 {[%emt 0:00:13]} 43. h6 {[%emt 0:00:30]} Qc4+ {[%emt 0:00:11]} 44. Kc2 {[%emt 0:00:01]} Bf8 {[%emt 0:00:10]} 45. Qd7 {[%emt 0:00:05]} Qa6 {[%emt 0:00:05]} 46. Qe8 {[%emt 0:00:03]} Qb6 {[%emt 0:00:06]} 47. Qg6+ {[%emt 0:00:10]} Kh8 {[%emt 0:00:03]} 48. Be3 {[%emt 0:00:09]} Qc6 {[%emt 0:00:10]} 49. Bf2 {[%emt 0:00:01]} Qd7 {[%emt 0:00:12]} 50. Bh4 {[%emt 0:00:02]} Bb4 {[%emt 0:00:05]} 51. Kb3 {[%emt 0:00:52]} Bf8 {[%emt 0:00:25]} 52. Kc2 {[%emt 0:00:07]} Bb4 {[%emt 0:00:06]} 53. Kb3 {[%emt 0:00:01]} Bf8 {[%emt 0:00:02]} 54. Bg5 {[%emt 0:00:14]} Nxg5 {[%emt 0:00:09]} 55. fxg5 {[%emt 0:00:01]} Qb7+ {[%emt 0:00:08]} 56. Kc2 {[%emt 0:00:03]} Qe7 {[%emt 0:00:10]} 57. Qh5 {[%emt 0:00:19]} g3 {[%emt 0:00:21]} 58. g6 {[%emt 0:00:01]} g2 {[%emt 0:00:17]} 59. Ne2 {[%emt 0:00:17]} Qc7+ {[%emt 0:00:12]} 60. Kd1 {[%emt 0:00:13]} Qc4 {[%emt 0:00:12]} 61. g7+ {[%emt 0:00:07]} Bxg7 {[%emt 0:00:01]} 62. hxg7+ {[%emt 0:00:02]} Kxg7 {[%emt 0:00:01]} 63. Qg5+ {[%emt 0:00:04]} Kf7 {[%emt 0:00:03]} 64. Qxg2 {[%emt 0:00:06]} Qd3+ {[%emt 0:00:06]} 65. Ke1 {[%emt 0:00:02]} Qb1+ {[%emt 0:00:05]} 66. Kf2 {[%emt 0:00:03]} Qc2 {[%emt 0:00:08]} 67. Qg5 {[%emt 0:00:09]} Qc6 {[%emt 0:00:13]} 68. Qf6+ {[%emt 0:00:03]} Ke8 {[%emt 0:00:01]} 69. Qg6+ {[%emt 0:00:08]} Ke7 {[%emt 0:00:10]} 70. Qg5+ {[%emt 0:00:07]} Kf7 {[%emt 0:00:05]} 71. Qh6 {[%emt 0:00:14]} Qb6 {[%emt 0:00:25]} 72. Ke3 {[%emt 0:00:42]} Qb3+ {[%emt 0:00:09]} 73. Kf4 {[%emt 0:00:18]} Qb6 {[%emt 0:00:07]} 74. Kg5 {[%emt 0:00:07]} Qa6 {[%emt 0:00:05]} 75. Nf4 {[%emt 0:00:13]} 1-0